bitfinex/quotes_BTCUSD_20251224
["timestamp","ask_amount","ask_price","bid_price","bid_amount"]
[1766541140141,0.0001,87625.0,87622.0,0.0684753]
[1766541141559,0.0001,87625.0,87622.0,0.01141265]
[1766541141978,0.0001,87625.0,87621.0,0.01141278]
[1766541142441,0.0001,87625.0,87622.0,0.01141265]
[1766541143446,0.0001,87625.0,87621.0,0.01141278]
[1766541145062,0.0001,87625.0,87620.0,0.02285291]
[1766541145279,0.06847524,87623.0,87620.0,0.010341]
[1766541145474,0.06847524,87623.0,87615.0,0.01144]
[1766541145475,0.12265,87619.0,87615.0,0.01144]
[1766541145722,0.13406304,87619.0,87613.0,0.01144]
[1766541145901,0.13406304,87619.0,87613.0,1.92e-06]
[1766541146102,0.12265,87617.0,87613.0,1.92e-06]
[1766541150773,0.122101,87617.0,87613.0,1.92e-06]
[1766541160004,0.13351431,87617.0,87613.0,1.92e-06]
[1766541160216,0.13530344,87616.0,87613.0,1.92e-06]
[1766541161216,0.12389,87615.0,87613.0,1.92e-06]
[1766541162282,0.12389,87614.0,87613.0,1.92e-06]
[1766541163087,0.12389,87614.0,87608.0,0.00010599]
[1766541164817,0.1353037,87614.0,87608.0,0.00010599]
[1766541165025,0.01141396,87612.0,87608.0,0.00010599]
[1766541165178,0.12389,87610.0,87608.0,9.9e-07]
[1766541166611,0.123785,87610.0,87608.0,9.9e-07]
[1766541166930,0.12389,87617.0,87609.0,0.01141435]
[1766541167094,0.12389,87617.0,87608.0,0.01141547]
[1766541167464,0.13530331,87617.0,87608.0,0.01141547]
[1766541167849,0.13530331,87617.0,87608.0,9.9e-07]
[1766541168041,0.12389,87616.0,87608.0,9.9e-07]
[1766541168225,0.01141331,87617.0,87608.0,9.9e-07]
[1766541168226,0.12389,87613.0,87608.0,9.9e-07]
[1766541168892,0.13530396,87612.0,87608.0,9.9e-07]
[1766541169238,0.12389,87612.0,87608.0,9.9e-07]
[1766541172688,0.12334,87612.0,87608.0,9.9e-07]
[1766541173291,0.10856038,87612.0,87609.0,0.01141435]
[1766541174090,0.10856038,87612.0,87608.0,0.01141547]
[1766541174457,0.12389,87619.0,87608.0,0.01141547]
[1766541174669,0.12389,87617.0,87608.0,0.01141547]
[1766541175281,0.12389,87617.0,87609.0,0.01141435]
[1766541176564,0.12389,87617.0,87610.0,0.01141422]
[1766541176956,0.12389,87617.0,87609.0,0.01141435]
[1766541177362,0.13533,87617.0,87609.0,0.01141435]
[1766541177754,0.13533,87617.0,87610.0,0.01141422]
[1766541177881,0.13533,87617.0,87608.0,9.9e-07]
[1766541178694,0.13533,87617.0,87609.0,0.01141435]
[1766541179083,0.13533,87617.0,87610.0,0.01141422]
[1766541179286,0.13533,87617.0,87609.0,0.01141435]
[1766541179494,0.13533,87617.0,87610.0,0.01141422]
[1766541180352,0.13533,87617.0,87609.0,0.01141435]
[1766541180593,0.13533,87617.0,87610.0,0.01141422]
[1766541181167,0.13533,87617.0,87609.0,0.01141435]
[1766541181372,0.13533,87617.0,87608.0,0.06848726]
[1766541181373,0.13533,87617.0,87608.0,0.01141547]
[1766541181691,0.14674331,87617.0,87608.0,9.9e-07]
[1766541182123,0.14674331,87617.0,87608.0,0.01141547]
[1766541182255,0.13533,87617.0,87609.0,0.01141435]
[1766541182456,0.13533,87617.0,87610.0,0.01141422]
[1766541183303,0.13533,87617.0,87608.0,9.9e-07]
[1766541183304,0.14674331,87617.0,87608.0,9.9e-07]
[1766541183424,0.14674331,87617.0,87608.0,0.01141547]
[1766541183633,0.13533,87617.0,87611.0,0.01141409]
[1766541184019,0.13533,87617.0,87612.0,0.01141396]
[1766541185275,0.13533,87617.0,87611.0,0.01141409]
[1766541185683,0.0001,87625.0,87612.0,0.01141396]
[1766541185859,0.01144,87624.0,87618.0,0.06847858]
[1766541186053,0.01144,87624.0,87616.0,0.01141344]
[1766541186256,0.01144,87624.0,87618.0,0.01141317]
[1766541187350,0.0001,87625.0,87620.0,0.01141291]
[1766541187545,0.0001,87625.0,87619.0,0.01141304]
[1766541187747,0.12009,87625.0,87616.0,0.01141344]
[1766541187974,0.12009,87625.0,87617.0,0.01141331]
[1766541188411,0.12009,87625.0,87618.0,0.01141317]
[1766541188999,0.12009,87625.0,87619.0,0.01141304]
[1766541189393,0.12009,87625.0,87620.0,0.01141291]
[1766541190551,0.12009,87625.0,87619.0,0.01141304]
[1766541190753,0.12009,87625.0,87620.0,0.01141291]
[1766541191465,0.11999,87631.0,87626.0,0.01141213]
[1766541191604,0.11999,87631.0,87622.0,0.01141265]
[1766541191801,0.11999,87631.0,87623.0,0.01141252]
[1766541191999,0.11999,87631.0,87622.0,0.01141265]
[1766541192673,0.11999,87625.0,87604.0,0.05707477]
[1766541192870,0.11999,87625.0,87600.0,0.22831006]
[1766541192871,0.11999,87617.0,87610.0,0.01141422]
[1766541193013,0.11999,87617.0,87609.0,0.02285435]
[1766541193431,0.11999,87613.0,87608.0,9.9e-07]
[1766541193623,0.11999,87613.0,87607.0,9.9e-07]
[1766541193886,0.11999,87613.0,87604.0,0.011415]
[1766541194091,0.11999,87613.0,87606.0,0.01141474]
[1766541194092,0.12003485,87613.0,87606.0,0.01141474]
[1766541194303,0.12003485,87613.0,87607.0,0.01141461]
[1766541194708,0.12003485,87613.0,87608.0,0.01141448]
[1766541194909,0.12003485,87613.0,87607.0,0.01141461]
[1766541195238,0.12003485,87613.0,87608.0,0.01141448]
[1766541195694,0.12003485,87613.0,87606.0,0.01141474]
[1766541196251,0.12003485,87613.0,87607.0,0.01141461]
[1766541198824,0.12003485,87613.0,87610.0,0.01141422]
[1766541203010,0.12003485,87613.0,87610.0,0.06848525]
[1766541203411,4.485e-05,87613.0,87610.0,0.06848525]
[1766541203607,4.485e-05,87613.0,87611.0,0.05706987]
[1766541206109,4.485e-05,87613.0,87611.0,0.05706986]
[1766541209613,0.01144,87625.0,87621.0,0.01141278]
[1766541209819,4.489e-05,87625.0,87619.0,0.01141304]
[1766541210022,0.000549,87621.0,87619.0,0.01141304]
[1766541210225,0.01148489,87625.0,87619.0,0.01141304]
[1766541210428,0.01148489,87625.0,87620.0,0.01141291]
[1766541210633,0.00055,87620.0,87614.0,0.0114137]
[1766541210826,0.11636,87618.0,87613.0,0.01144]
[1766541212159,0.11636,87618.0,87613.0,0.010891]
[1766541212926,0.11636,87615.0,87613.0,1e-06]
[1766541215668,0.01141383,87613.0,87605.0,0.01144]
[1766541216014,0.1133,87612.0,87605.0,0.01144]
[1766541216692,0.12471396,87612.0,87605.0,0.01144]
[1766541217068,0.12471409,87611.0,87605.0,0.01144]
[1766541217272,0.1133,87611.0,87605.0,0.01144]
[1766541217495,0.1133,87611.0,87605.0,0.01089]
[1766541220156,0.1133,87611.0,87605.0,0.02230487]
[1766541221884,0.1133,87611.0,87606.0,0.01141474]
[1766541222046,0.1133,87611.0,87605.0,0.02230487]
[1766541222446,0.10441322,87611.0,87607.0,0.01141461]
[1766541222651,0.01141317,87618.0,87611.0,0.000549]
[1766541222850,0.01141317,87618.0,87609.0,0.01141435]
[1766541223593,0.01144,87619.0,87609.0,0.068486]
[1766541223758,0.01144,87619.0,87612.0,0.01141396]
[1766541225678,0.01144,87619.0,87613.0,0.01141383]
[1766541226080,0.01144,87619.0,87612.0,0.01141396]
[1766541226481,0.01144,87619.0,87613.0,0.01141383]
[1766541226680,0.01144,87619.0,87612.0,0.01141396]
[1766541227014,0.01144,87619.0,87613.0,0.01141383]
[1766541227807,0.01144,87619.0,87614.0,0.0114137]
[1766541227990,0.01144,87619.0,87613.0,0.01141383]
[1766541228390,0.01144,87619.0,87612.0,0.01141396]
[1766541228611,0.01144,87619.0,87611.0,0.01141409]
[1766541229195,0.01144,87619.0,87610.0,0.01141422]
[1766541229469,0.01144,87619.0,87611.0,0.01141409]
[1766541229948,0.01144,87619.0,87613.0,0.01141383]
[1766541231068,0.01144,87619.0,87612.0,0.01141396]
[1766541231686,0.01144,87619.0,87613.0,0.01141383]
[1766541231894,0.01144,87619.0,87613.0,0.01255228]
[1766541232300,0.01144,87619.0,87614.0,0.0114137]
[1766541232498,0.01144,87619.0,87613.0,0.01255228]
[1766541233146,0.01144,87619.0,87611.0,0.01141409]
[1766541233147,0.12474,87619.0,87611.0,0.01141409]
[1766541233628,0.13615304,87619.0,87610.0,0.02285422]
[1766541233820,0.12474,87619.0,87610.0,0.01144]
[1766541234449,0.13615304,87619.0,87610.0,0.02285422]
[1766541234863,0.13615304,87619.0,87610.0,0.01144]
[1766541235102,0.12474,87619.0,87610.0,0.02285422]
[1766541237081,0.12474,87619.0,87612.0,0.01141396]
[1766541237582,0.12474,87619.0,87613.0,0.01141383]
[1766541237794,0.12474,87619.0,87612.0,0.01141396]
[1766541238502,0.12474,87619.0,87613.0,0.01141383]
[1766541238968,0.12474,87619.0,87614.0,0.0114137]
[1766541239163,0.12474,87619.0,87613.0,0.01141383]
[1766541239362,0.12474,87619.0,87614.0,0.0114137]
[1766541239884,0.12474,87619.0,87615.0,0.01141357]
[1766541240270,0.12474,87619.0,87614.0,0.0114137]
[1766541240683,0.12474,87619.0,87613.0,0.01141383]
[1766541241146,0.12474,87619.0,87614.0,0.0114137]
[1766541241799,0.12474,87619.0,87615.0,0.01141357]
[1766541242393,4.489e-05,87625.0,87622.0,0.01141265]
[1766541242533,0.13395122,87633.0,87623.0,0.01141252]
[1766541242747,0.01141161,87630.0,87618.0,0.05706573]
[1766541242945,0.01151174,87629.0,87619.0,0.01141304]
[1766541243188,0.01151174,87629.0,87620.0,0.01141291]
[1766541243392,0.01151174,87629.0,87619.0,0.01141304]
[1766541243602,0.0001,87629.0,87620.0,0.01141291]
[1766541244458,0.01151174,87629.0,87620.0,0.01141291]
[1766541244656,0.011412,87627.0,87618.0,0.01141317]
[1766541244861,0.01141187,87628.0,87618.0,0.01141317]
[1766541245718,0.13405174,87629.0,87618.0,0.01141317]
[1766541245950,0.12264,87629.0,87620.0,0.01141291]
[1766541246375,0.12264,87629.0,87621.0,0.01141278]
[1766541248542,0.12264,87629.0,87622.0,0.01141265]
[1766541249063,0.12264,87629.0,87621.0,0.01141278]
[1766541249290,0.12264,87629.0,87620.0,0.01141291]
[1766541249494,0.13405174,87629.0,87619.0,0.01141304]
[1766541249656,0.13405174,87629.0,87620.0,0.01141291]
[1766541249857,0.01141187,87628.0,87619.0,0.01141304]
[1766541250258,0.12264,87629.0,87620.0,0.01141291]
[1766541250469,0.12264,87629.0,87621.0,0.01141278]
[1766541250878,0.12264,87629.0,87622.0,0.01141265]
[1766541251264,0.12264,87629.0,87623.0,0.01141252]
[1766541251467,0.12264,87629.0,87622.0,0.01141265]
[1766541251710,4.4e-05,87622.0,87619.0,0.01141304]
[1766541252079,0.12264,87629.0,87621.0,0.01141278]
[1766541252705,0.122135,87629.0,87623.0,0.01141252]
[1766541253152,0.122135,87629.0,87624.0,0.01141239]
[1766541253348,0.122135,87629.0,87621.0,0.01141278]
[1766541253526,0.122135,87629.0,87622.0,0.01141265]
[1766541253905,0.122135,87629.0,87623.0,0.01141252]
[1766541254300,0.122135,87629.0,87624.0,0.01141239]
[1766541254496,0.122135,87629.0,87625.0,0.01141226]
[1766541254994,0.122135,87629.0,87626.0,0.01141213]
[1766541255858,0.122135,87629.0,87625.0,0.01141226]
[1766541256673,0.122135,87629.0,87624.0,0.01141239]
[1766541256867,0.13354674,87629.0,87616.0,0.06850677]
[1766541257194,0.12254,87627.0,87617.0,0.01141331]
[1766541257371,0.12254,87627.0,87619.0,0.01141304]
[1766541257572,0.12254,87627.0,87620.0,0.01141291]
[1766541257774,0.12254,87627.0,87616.0,0.06855166]
[1766541257775,0.13395213,87626.0,87616.0,0.01148489]
[1766541257984,0.000549,87620.0,87616.0,0.01148489]
[1766541258540,0.13395252,87623.0,87616.0,0.01148489]
[1766541258730,0.01141265,87622.0,87616.0,0.01148489]
[1766541258872,0.12254,87623.0,87616.0,0.01148489]
[1766541259508,0.13395252,87623.0,87616.0,0.01093589]
[1766541259737,0.13395252,87623.0,87612.0,0.01141396]
[1766541259738,0.12254,87617.0,87612.0,0.01144]
[1766541259896,0.12254,87617.0,87610.0,0.01141422]
[1766541260916,0.12254,87617.0,87613.0,0.01141383]
[1766541261114,0.13398,87625.0,87618.0,0.01141317]
[1766541261465,0.13402895,87625.0,87616.0,0.01141344]
[1766541261759,0.13402895,87625.0,87617.0,0.01141331]
[1766541261934,0.14544121,87625.0,87615.0,0.01141357]
[1766541262134,0.14544121,87625.0,87614.0,0.0114137]
[1766541262135,0.13395252,87623.0,87614.0,0.0114137]
[1766541262722,0.12254,87621.0,87613.0,0.01141383]
[1766541263143,0.12254,87621.0,87612.0,0.01141396]
[1766541263387,0.12254,87621.0,87614.0,0.0114137]
[1766541263964,0.12254,87621.0,87617.0,0.01141331]
[1766541264798,0.10568662,87621.0,87618.0,0.01141317]
[1766541264950,0.1037848,87621.0,87618.0,0.01141317]
[1766541265582,0.01144,87624.0,87621.0,0.01141278]
[1766541268302,0.01144,87628.0,87627.0,0.05705994]
[1766541268537,0.01144,87630.0,87627.0,0.06847194]
[1766541270283,0.01144,87630.0,87628.0,0.05705879]
[1766541270859,0.0001,87642.0,87638.0,0.01141057]
[1766541271062,0.000549,87638.0,87637.0,0.0114107]
[1766541271268,0.000549,87638.0,87636.0,0.01141083]
[1766541271684,0.0001,87642.0,87636.0,0.01141083]
[1766541272122,0.0001,87642.0,87639.0,0.01141044]
[1766541272329,0.000549,87639.0,87636.0,0.01141083]
[1766541272493,0.000549,87639.0,87635.0,0.01141096]
[1766541272835,0.0001,87642.0,87634.0,0.01141109]
[1766541273053,0.0001,87642.0,87635.0,0.01141096]
[1766541273900,0.0001,87642.0,87636.0,0.01141083]
[1766541274169,0.0001,87642.0,87635.0,0.01141096]
[1766541274374,0.0001,87642.0,87634.0,0.01141109]
[1766541274521,0.0001,87642.0,87635.0,0.01141096]
[1766541274945,0.0001,87642.0,87636.0,0.01141083]
[1766541275120,0.0001,87642.0,87635.0,0.01141096]
[1766541275578,0.0001,87642.0,87634.0,0.01141109]
[1766541275779,0.0001,87642.0,87635.0,0.01141096]
[1766541276693,0.12403,87641.0,87632.0,0.01144]
[1766541276858,0.01141031,87640.0,87632.0,0.01144]
[1766541277058,0.01141057,87638.0,87632.0,0.010891]
[1766541277803,0.01141044,87639.0,87632.0,0.010891]
[1766541278188,0.01141057,87638.0,87632.0,0.010891]
[1766541278390,0.13544044,87639.0,87632.0,0.010891]
[1766541281862,0.0114107,87637.0,87632.0,0.010891]
[1766541283081,0.01141057,87638.0,87632.0,0.010891]
[1766541283511,0.12403,87631.0,87624.0,0.01144]
[1766541283978,0.12403,87631.0,87626.0,0.01141213]
[1766541284193,0.12403,87631.0,87626.0,0.06847256]
[1766541284402,0.13547,87637.0,87627.0,0.011412]
[1766541285030,0.13547,87637.0,87624.0,0.07991382]
[1766541285031,0.12403,87634.0,87624.0,0.01144]
[1766541285204,0.000549,87627.0,87624.0,0.01144]
[1766541285659,0.01141135,87632.0,87624.0,0.01144]
[1766541286012,0.13544135,87632.0,87624.0,0.01144]
[1766541286222,0.01141148,87631.0,87624.0,0.01144]
[1766541286616,0.13544135,87632.0,87624.0,0.01144]
[1766541286825,0.12403,87632.0,87624.0,0.01144]
[1766541287027,0.12403,87632.0,87624.0,0.02285239]
[1766541289278,0.12403,87632.0,87625.0,0.01141226]
[1766541289629,0.12403,87632.0,87627.0,0.011412]
[1766541289828,0.12403,87632.0,87624.0,0.02285239]
[1766541290278,0.12403,87632.0,87625.0,0.01141226]
[1766541290501,0.12403,87632.0,87626.0,0.01141213]
[1766541290657,0.12403,87632.0,87627.0,0.011412]
[1766541291740,0.12403,87632.0,87628.0,0.01141187]
[1766541292099,0.01140992,87643.0,87629.0,0.01141174]
[1766541292305,0.0684588,87644.0,87629.0,0.01141174]
[1766541292306,0.00015305,87642.0,87634.0,0.01141109]
[1766541292515,0.01144,87641.0,87631.0,0.01141148]
[1766541292662,0.02285018,87641.0,87632.0,0.01141135]
[1766541292862,0.01144,87641.0,87632.0,0.01141135]
[1766541293304,0.01144,87641.0,87633.0,0.01141122]
[1766541293648,0.01144,87641.0,87632.0,0.01141135]
[1766541294069,0.01141031,87640.0,87631.0,0.01141148]
[1766541294303,0.02285018,87641.0,87631.0,0.01111402]
[1766541295124,0.01141031,87640.0,87630.0,0.4450667]
[1766541295929,0.01141031,87640.0,87631.0,0.01141148]
[1766541296160,0.02285018,87641.0,87631.0,0.01141148]
[1766541297262,0.01144,87641.0,87632.0,0.01141135]
[1766541297474,0.01144,87641.0,87633.0,0.01141122]
[1766541298276,0.01144,87641.0,87634.0,0.01141109]
[1766541298458,0.01144,87641.0,87635.0,0.01141096]
[1766541299398,0.01144,87641.0,87634.0,0.01141109]
[1766541299687,0.01144,87641.0,87633.0,0.01141122]
[1766541299892,0.00015305,87642.0,87635.0,0.01141096]
[1766541300041,0.01144,87640.0,87636.0,0.01141083]
[1766541300245,0.01144,87640.0,87633.0,0.01141122]
[1766541300455,0.01144,87640.0,87637.0,0.0114107]
[1766541301957,0.12011,87654.0,87646.0,0.01140953]
[1766541302161,0.03602249,87653.0,87643.0,0.06845901]
[1766541302364,0.000549,87643.0,87636.0,0.01141083]
[1766541302716,0.12011,87646.0,87637.0,0.0114107]
[1766541302916,0.01140979,87644.0,87634.0,0.02285005]
[1766541303345,0.01140979,87644.0,87635.0,0.01141096]
[1766541303740,0.01140966,87645.0,87635.0,0.01141096]
[1766541303896,0.01140966,87645.0,87636.0,0.01141083]
[1766541304100,0.13155,87646.0,87637.0,0.0114107]
[1766541304986,0.20000737,87646.0,87635.0,0.01141096]
[1766541305183,0.01140966,87645.0,87635.0,0.01141096]
[1766541305386,0.12011,87640.0,87634.0,0.01144]
[1766541305596,0.01141057,87638.0,87634.0,0.010341]
[1766541305803,0.13152031,87640.0,87630.0,0.44481015]
[1766541306044,0.13152031,87640.0,87630.0,0.4448632]
[1766541306203,0.13152031,87640.0,87631.0,0.01141148]
[1766541307350,0.13152031,87640.0,87630.0,0.4448632]
[1766541307527,0.01141057,87638.0,87630.0,0.43345159]
[1766541308080,0.13152031,87640.0,87631.0,0.01141148]
[1766541308842,0.12011,87640.0,87632.0,0.01141135]
[1766541309045,0.12011,87640.0,87631.0,0.01141148]
[1766541309240,0.12011,87640.0,87632.0,0.01141135]
[1766541309660,0.12011,87640.0,87631.0,0.01141148]
[1766541310270,0.13152031,87640.0,87630.0,0.43345159]
[1766541310463,0.01141044,87639.0,87630.0,0.43345159]
[1766541310672,0.01141044,87639.0,87630.0,0.4448632]
[1766541311028,0.13152031,87640.0,87631.0,0.01141148]
[1766541311232,0.13152031,87640.0,87630.0,0.4448632]
[1766541311689,0.12011,87638.0,87630.0,5.305e-05]
[1766541311898,0.12011,87638.0,87630.0,0.01146466]
[1766541312270,0.01144,87641.0,87638.0,0.000549]
[1766541312657,0.01144,87641.0,87636.0,0.01141083]
[1766541313660,0.01144,87644.0,87638.0,0.01141057]
[1766541314754,0.01144,87644.0,87639.0,0.01141044]
[1766541314954,0.00880301,87644.0,87639.0,0.01141044]
[1766541315191,0.12011,87656.0,87645.0,0.01140966]
[1766541315393,0.12011,87656.0,87649.0,0.01140914]
[1766541315615,0.01144,87655.0,87649.0,0.01140914]
[1766541315794,0.01144,87655.0,87647.0,0.0114094]
[1766541315995,0.13155,87655.0,87642.0,0.01141005]
[1766541316202,0.13151862,87653.0,87643.0,0.01140992]
[1766541316397,0.13151862,87653.0,87636.0,0.04565414]
[1766541316398,0.000549,87643.0,87637.0,0.0228507]
[1766541316600,0.12011,87642.0,87636.0,0.01141083]
[1766541317060,0.12011,87642.0,87638.0,0.01141057]
[1766541317348,0.12011,87642.0,87639.0,0.01141044]
[1766541317504,0.11956,87642.0,87639.0,0.06846248]
[1766541317929,0.11956,87642.0,87639.0,0.01141044]
[1766541323501,0.10936334,87642.0,87639.0,0.01141044]
[1766541323893,0.01144,87646.0,87640.0,0.01141031]
[1766541324094,0.01144,87646.0,87641.0,0.01141018]
[1766541324476,0.01144,87646.0,87642.0,0.01141005]
[1766541324701,0.01144,87646.0,87643.0,0.01140992]
[1766541325138,0.01144,87647.0,87644.0,0.01140979]
[1766541327013,0.00646107,87647.0,87644.0,0.01140979]
[1766541328250,0.00646107,87647.0,87645.0,0.05704831]
[1766541328649,0.00473145,87647.0,87645.0,0.05704831]
[1766541329082,0.00285258,87647.0,87645.0,0.05704831]
[1766541330091,0.12011,87655.0,87648.0,0.01140927]
[1766541330318,0.01144,87654.0,87647.0,0.0114094]
[1766541330500,0.000549,87648.0,87645.0,0.06845797]
[1766541330724,0.01144,87649.0,87647.0,0.0114094]
[1766541331132,0.12011,87655.0,87647.0,0.0114094]
[1766541331345,0.01144,87654.0,87648.0,0.01140927]
[1766541331690,0.000549,87648.0,87647.0,0.0114094]
[1766541332096,0.01168971,87657.0,87654.0,0.01140849]
[1766541332302,0.01168971,87657.0,87653.0,0.01140862]
[1766541332505,0.01168971,87657.0,87652.0,0.01140875]
[1766541332691,0.12753971,87657.0,87652.0,0.01140875]
[1766541333089,0.01144,87656.0,87653.0,0.01140862]
[1766541334442,0.12684,87656.0,87653.0,0.01140862]
[1766541334823,0.12684,87656.0,87653.0,0.06845119]
[1766541335397,0.1154,87656.0,87653.0,0.06845119]
[1766541335621,0.01144,87655.0,87653.0,0.06845119]
[1766541336230,0.01144,87655.0,87653.0,0.01140862]
[1766541336657,0.00024971,87657.0,87655.0,0.000549]
[1766541336819,0.01144,87656.0,87654.0,0.01140849]
[1766541338521,0.0004,87665.0,87657.0,0.0114081]
[1766541338723,0.0004,87665.0,87656.0,0.000549]
[1766541338724,0.1154,87661.0,87656.0,0.000549]
[1766541338858,0.1154,87661.0,87654.0,0.01140849]
[1766541341641,0.01144,87662.0,87659.0,0.01140784]
[1766541342818,0.01144,87664.0,87662.0,0.01140745]
[1766541343532,0.0001,87671.0,87666.0,0.01140693]
[1766541343736,0.0004,87673.0,87670.0,0.01140641]
[1766541343957,0.01144,87672.0,87670.0,0.01140641]
[1766541344365,0.01144,87672.0,87668.0,0.01140667]
[1766541344568,0.01144,87672.0,87666.0,0.01140693]
[1766541344770,0.01144,87672.0,87666.0,0.01085793]
[1766541344974,0.01144,87672.0,87667.0,0.0114068]
[1766541345379,0.01144,87672.0,87669.0,0.01140654]
[1766541345729,0.010891,87672.0,87669.0,0.01140654]
[1766541346286,0.00064962,87673.0,87670.0,0.01140641]
[1766541347466,0.000549,87670.0,87669.0,0.01140654]
[1766541347947,0.00064962,87673.0,87670.0,0.01140641]
[1766541348339,0.00064962,87673.0,87670.0,0.06843784]
[1766541349742,0.00064962,87673.0,87671.0,0.05703078]
[1766541350668,0.00064962,87673.0,87670.0,0.06843784]
[1766541351655,0.000549,87670.0,87666.0,0.01140693]
[1766541351857,0.000549,87670.0,87662.0,0.05703725]
[1766541352155,0.1154,87672.0,87665.0,0.01140706]
[1766541352778,0.1154,87672.0,87666.0,0.01140693]
[1766541352976,0.1154,87672.0,87667.0,0.0114068]
[1766541353173,0.1154,87672.0,87666.0,0.01140693]
[1766541353356,0.1154,87672.0,87665.0,0.01140706]
[1766541354474,0.1154,87672.0,87664.0,0.01140719]
[1766541354884,0.12680615,87672.0,87663.0,0.01140732]
[1766541355076,0.1154,87672.0,87663.0,0.01140732]
[1766541356307,0.12680615,87672.0,87663.0,0.01140732]
[1766541356510,0.1154,87672.0,87664.0,0.01140719]
[1766541357310,0.1154,87672.0,87663.0,0.01140732]
[1766541360137,0.1154,87672.0,87664.0,0.01140719]
[1766541360511,0.00064962,87673.0,87668.0,0.01140667]
[1766541361546,0.00064962,87673.0,87669.0,0.01140654]
[1766541361963,0.00064962,87673.0,87670.0,0.01140641]
[1766541362162,0.01144,87684.0,87676.0,0.01140562]
[1766541362369,0.01144,87684.0,87677.0,0.01140549]
[1766541362589,0.01144,87684.0,87676.0,0.01140562]
[1766541362590,0.13577,87684.0,87676.0,0.01140562]
[1766541362731,0.13577,87684.0,87675.0,0.01140575]
[1766541362935,0.12433,87684.0,87679.0,0.01140523]
[1766541363133,0.0001,87688.0,87679.0,0.01140523]
[1766541363374,0.0114051,87680.0,87674.0,0.01144]
[1766541363579,0.12433,87677.0,87674.0,0.01144]
[1766541363784,0.12433,87677.0,87669.0,0.02971162]
[1766541364214,0.12433,87677.0,87669.0,0.01144]
[1766541364405,0.12433,87677.0,87669.0,0.02284654]
[1766541364723,0.13573549,87677.0,87669.0,0.01144]
[1766541364930,0.01140589,87674.0,87669.0,0.01144]
[1766541365075,0.01140575,87675.0,87669.0,0.01089]
[1766541366324,0.01140575,87675.0,87666.0,0.01140693]
[1766541367148,0.01140562,87676.0,87666.0,0.01140693]
[1766541367556,0.01140562,87676.0,87667.0,0.0114068]
[1766541369336,0.13573549,87677.0,87667.0,0.0114068]
[1766541369991,0.01168959,87681.0,87671.0,0.01140628]
[1766541370169,0.01168959,87681.0,87677.0,0.000549]
[1766541370391,0.14742456,87681.0,87677.0,0.000549]
[1766541370595,0.14742456,87681.0,87671.0,0.01140628]
[1766541370890,0.0114051,87680.0,87670.0,0.01140641]
[1766541371072,0.01140523,87679.0,87670.0,0.01111819]
[1766541371420,0.01140523,87679.0,87667.0,0.0114068]
[1766541371421,0.13573549,87677.0,87667.0,0.0114068]
[1766541372032,0.12433,87677.0,87668.0,0.01140667]
[1766541372425,0.13573549,87677.0,87668.0,0.01140667]
[1766541372630,0.12433,87677.0,87668.0,0.01140667]
[1766541373015,0.13573549,87677.0,87668.0,0.01140667]
[1766541373736,0.13573549,87677.0,87667.0,0.0114068]
[1766541374856,0.01140575,87675.0,87666.0,0.01140693]
[1766541375145,0.02284562,87676.0,87667.0,0.0114068]
[1766541375728,0.01144,87676.0,87668.0,0.01140667]
[1766541376582,0.01144,87676.0,87667.0,0.0114068]
[1766541376778,0.01144,87676.0,87668.0,0.01140667]
[1766541376960,0.01144,87676.0,87669.0,0.01140654]
[1766541377787,0.01144,87676.0,87670.0,0.01140641]
[1766541378162,0.01144,87676.0,87671.0,0.01140628]
[1766541378561,0.01144,87676.0,87672.0,0.01140615]
[1766541378790,0.01144,87676.0,87673.0,0.01140602]
[1766541378791,0.010891,87676.0,87673.0,0.01140602]
[1766541379974,0.010891,87676.0,87673.0,0.06843551]
[1766541380797,1e-06,87676.0,87674.0,0.05702898]
[1766541380974,1e-06,87676.0,87675.0,0.00113764]
[1766541381861,0.01144,87679.0,87678.0,0.01140536]
[1766541382503,0.01089,87679.0,87678.0,0.01140536]
[1766541383566,0.01089,87679.0,87676.0,0.01140562]
[1766541383858,0.01089,87679.0,87675.0,0.01140575]
[1766541384026,0.01089,87679.0,87676.0,0.01140562]
[1766541385243,0.01144,87680.0,87676.0,0.01140562]
[1766541385437,0.01144,87680.0,87673.0,0.01140602]
[1766541385852,0.13577,87680.0,87673.0,0.01140602]
[1766541386013,0.13577,87680.0,87674.0,0.01140589]
[1766541387043,0.12433,87680.0,87675.0,0.01140575]
[1766541387207,0.01144,87679.0,87675.0,0.01140575]
[1766541388528,0.01144,87679.0,87676.0,0.01140562]
[1766541389913,0.01144,87679.0,87676.0,0.06843327]
[1766541390189,0.01144,87679.0,87677.0,0.05702702]
[1766541390525,0.01168959,87681.0,87680.0,0.05702554]
[1766541390731,0.01144,87683.0,87679.0,0.06843142]
[1766541391765,0.01144,87683.0,87680.0,0.0114051]
[1766541392174,0.01144,87683.0,87681.0,0.05702489]
[1766541393611,0.01144,87683.0,87680.0,0.0114051]
[1766541394372,0.00020731,87688.0,87685.0,0.05702229]
[1766541394596,0.00020731,87688.0,87686.0,0.05702164]
[1766541394802,0.0004,87691.0,87688.0,0.06842405]
[1766541394931,0.01144,87694.0,87690.0,0.0114038]
[1766541395138,0.01179746,87694.0,87690.0,0.0114038]
[1766541395782,0.01179746,87694.0,87689.0,0.01140393]
[1766541395976,0.000549,87690.0,87689.0,0.01140393]
[1766541396384,0.01179746,87694.0,87690.0,0.0114038]
[1766541396995,0.00035746,87694.0,87691.0,0.0125411]
[1766541397196,0.00035746,87694.0,87691.0,0.01140367]
[1766541397397,0.00035746,87694.0,87689.0,0.01140393]
[1766541397776,0.01195293,87689.0,87678.0,0.04563015]
[1766541398118,0.11742,87686.0,87679.0,0.01140523]
[1766541398425,0.11742,87686.0,87678.0,0.02284536]
[1766541398741,0.11742,87686.0,87678.0,0.01144]
[1766541399014,0.11742,87686.0,87678.0,0.010891]
[1766541399218,0.12882432,87686.0,87678.0,0.010891]
[1766541399784,0.11742,87686.0,87678.0,0.010891]
[1766541400097,0.01140445,87685.0,87678.0,0.010891]
[1766541400298,0.01140445,87685.0,87674.0,0.01144]
[1766541400299,0.12882484,87682.0,87674.0,0.01144]
[1766541400500,0.12882484,87682.0,87670.0,0.01140641]
[1766541400501,0.00055,87674.0,87670.0,0.02284641]
[1766541400701,0.00055,87674.0,87670.0,0.01144]
[1766541400899,0.00055,87674.0,87670.0,0.02284641]
[1766541401125,0.11742,87677.0,87670.0,0.02284641]
[1766541401474,0.11742,87677.0,87671.0,0.01140628]
[1766541401874,0.11742,87677.0,87672.0,0.01140615]